fUSD/lending_fUSD_20251224
["ID","MTS","AMOUNT","RATE_DAILY","PERIOD"]
[399639875,1766581848416,-3599.82421811,0.00017,2]
[399639876,1766581848428,-4164680.53951485,0.00017,2]
[399639877,1766581848460,-2199.92859773,0.00017,2]
[399639878,1766581848472,-567.06063767,0.00017,2]
[399639879,1766581848665,-564.0,0.00016748,2]
[399639880,1766581848675,-92.68007096,0.00017,2]
[399639881,1766581848691,-255.11095557,0.00017,2]
[399639882,1766581848958,-505.655,0.00017,2]
[399639883,1766581848969,-464.01937904,0.00017,2]
[399639884,1766581848991,-4679.99999978,0.00017,2]
[399639885,1766581849002,-522.10496075,0.00017,2]
[399639886,1766581849013,-3860.09243218,0.00017,2]
[399639888,1766582066282,500.0,0.00032876,120]
[399639889,1766582066506,500.0,0.00032876,120]
[399639890,1766582066729,500.0,0.00032876,120]
[399639891,1766582067356,500.0,0.00032876,120]
[399639892,1766582067412,500.0,0.00032876,120]
[399639893,1766582067498,500.0,0.00032876,120]
[399639894,1766582067641,500.0,0.00032876,120]
[399639895,1766582067870,500.0,0.00032876,120]
[399639896,1766582068110,500.0,0.00032876,120]
[399639897,1766582068342,500.0,0.00032876,120]
[399639898,1766582068568,500.0,0.00032876,120]
[399639899,1766582118379,500.0,0.0001429,2]
[399639900,1766582224267,2500.0,0.00014277,2]
[399639901,1766582318908,327.613,0.00032877,120]
[399639902,1766582510220,267.3552,0.00014277,2]
[399639903,1766582585179,170.18,0.00011094,2]
[399639904,1766582623034,413.21045603,0.0003287,120]
[399639905,1766582699906,-201.68796137,0.00014368,2]
[399639906,1766582699939,-503.77633702,0.00014368,2]
[399639907,1766582699974,-272.30111466,0.00014368,2]
[399639908,1766582700005,-201.0916735,0.00014368,2]
[399639909,1766582700038,-195.0,0.0001437,2]
[399639910,1766582700071,-372.16200133,0.00014371,2]
[399639911,1766582700103,-151.0,0.00014374,2]
[399639912,1766582700135,-1200.0,0.00014374,2]
[399639913,1766582700165,-804.59182424,0.00014375,2]
[399639914,1766582702765,-300.0,0.00014374,2]
[399639915,1766582702794,-2196.78817576,0.00014375,2]
[399639916,1766582702822,-150.0,0.00014375,2]
[399639917,1766582702854,-500.0,0.00014375,2]
[399639918,1766582702886,-500.0,0.00014375,2]
[399639919,1766582702922,-500.0,0.00014375,2]
[399639920,1766582702955,-500.0,0.00014375,2]
[399639921,1766582702989,-206.43364848,0.00014375,2]
[399639922,1766582705834,-293.56635152,0.00014375,2]
[399639923,1766582705872,-500.0,0.00014375,2]
[399639924,1766582705910,-500.0,0.00014375,2]
[399639925,1766582705947,-500.0,0.00014375,2]
[399639926,1766582705984,-367.79578189,0.00014375,2]
[399639927,1766582706024,-500.0,0.00014375,2]
[399639928,1766582706059,-500.0,0.00014375,2]
[399639929,1766582706090,-162.04091161,0.00014376,2]
[399639930,1766582706121,-402.02643554,0.00014376,2]
[399639931,1766582706153,-500.0,0.00014376,2]
[399639932,1766582706184,-506.48328275,0.00014376,2]
[399639933,1766582706215,-36.18447338,0.00014376,2]
[399639934,1766582712047,-463.81552662,0.00014376,2]
[399639935,1766582712078,-500.0,0.00014376,2]
[399639936,1766582712109,-500.0,0.00014376,2]
[399639937,1766582712139,-500.0,0.00014376,2]
[399639938,1766582712170,-500.0,0.00014376,2]
[399639939,1766582712200,-150.0,0.00014376,2]
[399639940,1766582712229,-500.0,0.00014376,2]
[399639941,1766582712259,-500.0,0.00014376,2]
[399639942,1766582712289,-500.0,0.00014376,2]
[399639943,1766582712319,-500.0,0.00014376,2]
[399639944,1766582712349,-272.37894676,0.00014376,2]
[399639945,1766582721251,-565.61,0.00014167,2]
[399639946,1766582760618,-268.86752652,0.00014374,2]
[399639947,1766582760651,-502.99520475,0.00014376,2]
[399639948,1766582760684,-227.62105324,0.00014376,2]
[399639949,1766582760716,-500.0,0.00014376,2]
[399639950,1766582760748,-516.01929042,0.00014376,2]
[399639951,1766582760779,-500.0,0.00014376,2]
[399639952,1766582760811,-500.0,0.00014376,2]
[399639953,1766582760842,-500.0,0.00014376,2]
[399639954,1766582760872,-500.0,0.00014376,2]
[399639955,1766582760904,-500.0,0.00014376,2]
[399639956,1766582760936,-469.00385014,0.00014376,2]
[399639957,1766582761155,-30.99614986,0.00014376,2]
[399639958,1766582761185,-500.0,0.00014376,2]
[399639959,1766582761216,-500.0,0.00014376,2]
[399639960,1766582761245,-500.0,0.00014376,2]
[399639961,1766582761275,-521.52385313,0.00014376,2]
[399639962,1766582761305,-500.0,0.00014376,2]
[399639963,1766582761707,-500.0,0.00014376,2]
[399639964,1766582761738,-500.0,0.00014376,2]
[399639965,1766582761769,-500.0,0.00014376,2]
[399639966,1766582761799,-500.0,0.00014376,2]
[399639967,1766582761830,-394.96999402,0.00014376,2]
[399639968,1766582761969,-105.03000598,0.00014376,2]
[399639969,1766582761999,-500.0,0.00014376,2]
[399639970,1766582762030,-500.0,0.00014376,2]
[399639971,1766582762062,-500.0,0.00014376,2]
[399639972,1766582762094,-500.0,0.00014376,2]
[399639973,1766582762126,-500.0,0.00014376,2]
[399639974,1766582762157,-500.0,0.00014376,2]
[399639975,1766582762187,-500.0,0.00014376,2]
[399639976,1766582762217,-500.0,0.00014376,2]
[399639977,1766582762248,-452.87068526,0.00014376,2]
[399639978,1766582762367,-2181.51,0.00014376,2]
[399639979,1766582762397,-582.59898014,0.00014376,2]
[399639980,1766582762426,-500.0,0.00014376,2]
[399639981,1766582762456,-500.0,0.00014376,2]
[399639982,1766582762487,-500.0,0.00014376,2]
[399639983,1766582762519,-500.0,0.00014376,2]
[399639984,1766582762623,-1417.567,0.00014376,2]
[399639985,1766582762655,-182.068,0.00014376,2]
[399639986,1766582762685,-500.0,0.00014376,2]
[399639987,1766582762714,-500.0,0.00014376,2]
[399639988,1766582762743,-500.0,0.00014376,2]
[399639989,1766582762773,-500.0,0.00014376,2]
[399639990,1766582762802,-485.01035695,0.00014376,2]
[399639991,1766582762831,-340.74998721,0.00014376,2]
[399639992,1766582762861,-500.0,0.00014376,2]
[399639993,1766582763063,-300.0,0.00014375,2]
[399639994,1766582763093,-500.0,0.00014376,2]
[399639995,1766582763125,-500.0,0.00014376,2]
[399639996,1766582763155,-500.0,0.00014376,2]
[399639997,1766582767351,-6357.64499044,0.00014376,2]
[399639998,1766582767389,-234.98688487,0.00014376,2]
[399639999,1766582767423,-469.97376974,0.00014376,2]
[399640000,1766582767464,-9060.06246052,0.00014376,2]
[399640001,1766582767479,-150.99,0.00014376,2]
[399640002,1766582767489,-9379.04623026,0.00014376,2]
[399640003,1766582767522,-620.94376974,0.00014376,2]
[399640004,1766582767551,-1206.07,0.00014376,2]
[399640005,1766582767625,-0.02,0.00014376,2]
[399640006,1766582767651,-6345.96246052,0.00014376,2]
[399640007,1766582767665,-3654.00753948,0.00014376,2]
[399640008,1766582767675,-6345.98246052,0.00014376,2]
[399640009,1766582769748,-3654.00753948,0.00014376,2]
[399640010,1766582769777,-512.7999143,0.00014376,2]
[399640011,1766582769836,-1666.39509244,0.00014376,2]
[399640012,1766582770209,-1214.17490756,0.00014376,2]
[399640013,1766582770240,-150.99,0.00014376,2]
[399640014,1766582770269,-999.99,0.00014376,2]
[399640015,1766582770298,-299.99,0.00014376,2]
[399640016,1766582770417,-4669.72018488,0.00014376,2]
[399640017,1766582770432,-8687.65981512,0.00014376,2]
[399640018,1766582770442,-500.0,0.00014376,2]
[399640019,1766582770452,-500.0,0.00014376,2]
[399640020,1766582770462,-312.35018488,0.00014376,2]
[399640021,1766582770477,-187.64981512,0.00014376,2]
[399640022,1766582770487,-500.0,0.00014376,2]
[399640023,1766582770496,-9312.36018488,0.00014376,2]
[399640024,1766582833485,259.09576182,0.000101,2]
[399640026,1766582880191,200.0,0.00014038,2]
[399640027,1766582909121,166.66,0.00013194,2]
[399640029,1766582909327,166.66,0.00013472,2]
[399640030,1766582909525,166.66,0.0001375,2]
[399640031,1766582909727,166.66,0.00014028,2]
[399640033,1766582925439,-1096.64,0.00014202,2]
[399640034,1766582953368,151.0,0.00014273,2]
[399640035,1766582971118,198.66594936,0.00014189,2]
[399640036,1766583001178,300.0,0.00014275,2]
[399640037,1766583001241,1200.0,0.00014275,2]
[399640038,1766583002733,150.0,0.00014275,2]
[399640039,1766583016302,500.0,0.00014275,2]
[399640047,1766583031484,-32283.05522917,0.00014276,2]
[399640050,1766583031495,-716.98537212,0.00014276,2]
[399640051,1766583031507,-500.0,0.00014276,2]
[399640052,1766583031542,-19344.6889867,0.00014276,2]
[399640053,1766583031554,-2494.44836013,0.00014276,2]
[399640054,1766583031566,-280.01601492,0.00014276,2]
[399640055,1766583031577,-510.0,0.00014276,2]
[399640056,1766583031589,-594.49,0.00014276,2]
[399640057,1766583031602,-18441.4,0.00014276,2]
[399640058,1766583031617,-927.1471776,0.00014276,2]
[399640059,1766583031662,-1932.135623,0.00014276,2]
[399640061,1766583031724,-6505.90959998,0.00014276,2]
[399640062,1766583031735,-1156.68531232,0.00014276,2]
[399640063,1766583032365,500.0,0.00014275,2]
[399640064,1766583032403,281.41850488,0.00014275,2]
[399640065,1766583032475,204.53829792,0.00014275,2]
[399640066,1766583033760,596.42175354,0.00014275,2]
[399640067,1766583037580,-914313.03832406,0.00014276,2]
[399640068,1766583037591,-300.0,0.00014289,2]
[399640069,1766583037607,-166.66,0.00014305,2]
[399640070,1766583037618,-391.52136296,0.00014375,2]
[399640071,1766583037628,-1155.37676638,0.00014376,5]
[399640072,1766583037638,-600.0,0.00014376,2]
[399640073,1766583037648,-500.0,0.00014376,2]
[399640074,1766583037658,-628.42658532,0.00014376,2]
[399640075,1766583037672,-500.0,0.00014376,2]
[399640076,1766583037682,-500.0,0.00014376,2]
[399640077,1766583037693,-504.00842386,0.00014376,2]
[399640078,1766583037703,-500.0,0.00014376,2]
[399640079,1766583037714,-500.0,0.00014376,2]
[399640080,1766583037724,-500.0,0.00014376,2]
[399640081,1766583037735,-500.0,0.00014376,2]
[399640082,1766583037746,-500.0,0.00014376,2]
[399640083,1766583037756,-500.0,0.00014376,2]
[399640084,1766583037766,-500.0,0.00014376,2]
[399640085,1766583037776,-200.0,0.00014376,2]
[399640086,1766583037787,-600.0,0.00014436,2]
[399640087,1766583037797,-42625.53795158,0.00014447,2]
[399640088,1766583037807,-33504.5899,0.00014476,2]
[399640089,1766583037818,-1000.0,0.00014476,2]
[399640090,1766583037828,-200.0,0.0001452,2]
[399640091,1766583037838,-500.0,0.00014575,2]
[399640092,1766583037848,-500.0,0.00014575,2]
[399640093,1766583037859,-500.0,0.00014575,2]
[399640094,1766583037870,-500.0,0.00014575,2]
[399640095,1766583037881,-500.0,0.00014575,2]
[399640096,1766583037890,-500.0,0.00014575,2]
[399640097,1766583037901,-500.0,0.00014575,2]
[399640098,1766583037911,-500.0,0.00014575,2]
[399640099,1766583037921,-500.0,0.00014575,2]
[399640101,1766583037931,-514.26068371,0.00014575,2]
[399640103,1766583037941,-500.0,0.00014575,2]
[399640105,1766583037952,-500.0,0.00014575,2]
[399640108,1766583037967,-530.21490798,0.00014575,2]
[399640110,1766583037978,-526.00597189,0.00014575,2]
[399640112,1766583037988,-500.0,0.00014575,2]
[399640114,1766583037998,-166.66,0.00014583,2]
[399640116,1766583038008,-150.0,0.00014606,5]
[399640118,1766583038019,-153.1607708,0.00014606,5]
[399640120,1766583038029,-150.0,0.00014606,5]
[399640122,1766583038039,-500.0,0.00014606,5]
[399640124,1766583038049,-500.0,0.00014606,5]
[399640125,1766583038059,-150.0,0.00014606,5]
[399640127,1766583038069,-151.8978061,0.00014606,5]
[399640129,1766583038079,-150.0,0.00014606,5]
[399640131,1766583038091,-150.0,0.00014606,5]
[399640133,1766583038101,-150.0,0.00014606,5]
[399640135,1766583038111,-427.0,0.00014606,5]
[399640137,1766583038122,-150.0,0.00014606,2]
[399640139,1766583038132,-150.0,0.00014606,5]
[399640141,1766583038142,-500.0,0.00014606,5]
[399640143,1766583038153,-173.82331506,0.00014606,5]
[399640145,1766583038163,-150.0,0.00014606,5]
[399640147,1766583038174,-150.53756938,0.00014606,5]
[399640149,1766583038183,-150.3024691,0.00014606,5]
[399640151,1766583038193,-150.0,0.00014606,5]
[399640153,1766583038202,-150.32339605,0.00014606,5]
[399640155,1766583038212,-150.0,0.00014606,5]
[399640157,1766583038223,-150.0,0.00014606,5]
[399640159,1766583038233,-150.05940282,0.00014606,5]
[399640161,1766583038243,-150.0,0.00014633,5]
[399640163,1766583038253,-150.9439251,0.00014633,5]
[399640165,1766583038264,-569.88171229,0.00014633,5]
[399640167,1766583038274,-500.0,0.00014633,5]
[399640169,1766583038284,-150.0,0.00014633,5]
[399640171,1766583038295,-427.0,0.00014633,5]
[399640173,1766583038305,-150.0,0.00014633,2]
[399640176,1766583038316,-150.0,0.00014633,5]
[399640178,1766583038330,-502.82209839,0.00014633,5]
[399640180,1766583038341,-150.33162922,0.00014633,5]
[399640182,1766583038351,-151.42325421,0.00014633,5]
[399640184,1766583038361,-150.0,0.00014633,5]
[399640186,1766583038378,-150.0,0.00014633,5]
[399640188,1766583038388,-500.0,0.00014633,5]
[399640190,1766583038398,-2181.51,0.0001465,2]
[399640192,1766583038408,-201.6820868,0.00014661,5]
[399640194,1766583038418,-554.97447821,0.00014661,5]
[399640196,1766583038428,-150.0,0.00014661,5]
[399640198,1766583038438,-427.0,0.00014661,5]
[399640200,1766583038448,-150.0,0.00014661,2]
[399640202,1766583038458,-150.0,0.00014661,5]
[399640204,1766583038470,-202.52909335,0.00014661,5]
[399640206,1766583038480,-200.77857799,0.00014661,5]
[399640208,1766583038491,-200.0,0.00014665,2]
[399640210,1766583038501,-150.0,0.00014688,5]
[399640212,1766583038511,-427.0,0.00014688,5]
[399640214,1766583038524,-165.63377507,0.00014688,2]
[399640216,1766583038535,-150.0,0.00014688,5]
[399640218,1766583038545,-13763.6,0.00014696,2]
[399640220,1766583038555,-183.18195821,0.00014716,5]
[399640222,1766583038565,-427.0,0.00014716,5]
[399640225,1766583038577,-150.0,0.00014716,5]
[399640227,1766583038588,-644.06116781,0.00014738,2]
[399640228,1766583038598,-427.0,0.00014743,5]
[399640230,1766583038609,-250.0,0.00014743,5]
[399640232,1766583038620,-427.0,0.0001477,5]
[399640234,1766583038630,-427.0,0.00014798,5]
[399640236,1766583038640,-200.0,0.00014812,2]
[399640238,1766583038650,-427.0,0.00014825,5]
[399640241,1766583038660,-427.0,0.00014853,5]
[399640243,1766583038676,-427.0,0.0001488,5]
[399640245,1766583038686,-427.0,0.00014907,5]
[399640247,1766583038696,-2181.51,0.00014924,2]
[399640249,1766583038707,-427.0,0.00014935,5]
[399640250,1766583038717,-200.0,0.0001496,2]
[399640252,1766583038728,-427.0,0.00014962,5]
[399640254,1766583038739,-427.0,0.0001499,5]
[399640257,1766583038750,-1191.16039457,0.0001499,2]
[399640259,1766583038760,-5014.92,0.00014999,2]
[399640261,1766583038771,-300.0,0.00015,2]
[399640263,1766583038782,-2041.47960317,0.00015,2]
[399640265,1766583038793,-7947.26999932,0.00015,2]
[399640267,1766583038803,-21363.10346556,0.00015,2]
[399640268,1766583038814,-1155.1798605,0.00015,2]
[399640271,1766583038826,-33595.71545948,0.00015,2]
[399640272,1766583038836,-427.0,0.00015017,5]
[399640274,1766583038846,-427.0,0.00015044,5]
[399640276,1766583038856,-682.90224529,0.00015069,2]
[399640279,1766583038867,-427.0,0.00015072,5]
[399640281,1766583038877,-500.0,0.00015085,2]
[399640282,1766583038887,-427.0,0.00015099,5]
[399640284,1766583038899,-396.73,0.00015122,2]
[399640286,1766583038909,-427.0,0.00015127,5]
[399640292,1766583038953,-427.0,0.00015154,5]
[399640294,1766583038964,-500.0,0.00015173,2]
[399640296,1766583038974,-169.37257746,0.00015173,2]
[399640298,1766583038985,-161.57308931,0.00015173,2]
[399640299,1766583038994,-500.0,0.00015173,2]
[399640302,1766583039005,-224.16527175,0.00015173,2]
[399640303,1766583039015,-174.83400543,0.00015173,2]
[399640305,1766583039026,-500.08479975,0.00015173,2]
[399640308,1766583039036,-163.19223575,0.00015173,2]
[399640310,1766583039047,-562.564449,0.00015173,2]
[399640312,1766583039057,-500.37919946,0.00015173,2]
[399640314,1766583039068,-500.0,0.00015173,2]
[399640316,1766583039078,-500.0,0.00015173,2]
[399640318,1766583039089,-500.0,0.00015173,2]
[399640320,1766583039099,-500.0,0.00015173,2]
[399640322,1766583039117,-500.0,0.00015173,2]
[399640325,1766583039138,-500.0,0.00015173,2]
[399640328,1766583039155,-500.0,0.00015173,2]
[399640330,1766583039169,-500.0,0.00015173,2]
[399640333,1766583039182,-500.0,0.00015173,2]
[399640335,1766583039197,-500.0,0.00015173,2]
[399640338,1766583039213,-516.09973549,0.00015173,2]
[399640340,1766583039227,-500.0,0.00015173,2]
[399640343,1766583039242,-500.0,0.00015173,2]
[399640346,1766583039264,-500.0,0.00015173,2]
[399640348,1766583039281,-500.0,0.00015173,2]
[399640351,1766583039297,-500.0,0.00015173,2]
[399640353,1766583039311,-172.85820104,0.00015173,2]
[399640355,1766583039323,-167.20691349,0.00015173,2]
[399640358,1766583039334,-500.0,0.00015173,2]
[399640360,1766583039348,-550.49299637,0.00015173,2]
[399640362,1766583039363,-500.0,0.00015173,2]
[399640365,1766583039377,-500.0,0.00015173,2]
[399640367,1766583039391,-500.0,0.00015173,2]
[399640370,1766583039405,-176.76151573,0.00015173,2]
[399640372,1766583039420,-500.0,0.00015173,2]
[399640375,1766583039436,-500.0,0.00015173,2]
[399640377,1766583039450,-500.0,0.00015173,2]
[399640379,1766583039464,-500.0,0.00015173,2]
[399640382,1766583039481,-500.0,0.00015173,2]
[399640384,1766583039495,-500.0,0.00015173,2]
[399640386,1766583039507,-500.0,0.00015173,2]
[399640388,1766583039523,-500.0,0.00015173,2]
[399640389,1766583039538,-500.0,0.00015173,2]
[399640390,1766583039552,-453.84632834,0.00015173,2]
[399640391,1766583039568,-500.0,0.00015173,2]
[399640392,1766583039584,-276.60479743,0.00015173,2]
[399640394,1766583039597,-427.0,0.00015181,5]
[399640397,1766583039610,-2181.51,0.00015198,2]
[399640400,1766583039624,-427.0,0.00015209,5]
[399640406,1766583039646,-500.0,0.00015216,2]
[399640409,1766583039665,-500.0,0.00015216,2]
[399640411,1766583039682,-448.21768034,0.00015236,5]
[399640414,1766583039699,-500.0,0.00015284,2]
[399640417,1766583039716,-152.81357025,0.00015288,2]
[399640420,1766583039727,-150.0,0.00015288,2]
[399640422,1766583039741,-150.0,0.00015288,2]
[399640425,1766583039757,-150.0,0.00015288,2]
[399640427,1766583039770,-150.0,0.00015288,2]
[399640430,1766583039789,-150.0,0.00015288,2]
[399640432,1766583039805,-150.0,0.00015288,2]
[399640435,1766583039822,-150.0,0.00015288,2]
[399640437,1766583039838,-152.31137415,0.00015288,2]
[399640439,1766583039850,-150.00000001,0.00015288,2]
[399640441,1766583039864,-150.0,0.00015288,2]
[399640444,1766583039878,-150.0,0.00015288,2]
[399640447,1766583039897,-150.0,0.00015288,2]
[399640449,1766583039914,-1517.64,0.000153,2]
[399640452,1766583039926,-506.05021686,0.000154,2]
[399640454,1766583039939,-150.0,0.00015401,2]
[399640456,1766583039951,-255.0,0.00015403,2]
[399640458,1766583039964,-682.90224529,0.00015435,2]
[399640461,1766583039977,-2181.51,0.00015472,2]
[399640463,1766583039991,-150.0,0.00015476,2]
[399640466,1766583040004,-1155.37676638,0.00015497,5]
[399640468,1766583040019,-150.0,0.00015514,2]
[399640471,1766583040032,-150.0,0.0001553,2]
[399640473,1766583040047,-150.0,0.0001553,2]
[399640476,1766583040061,-150.0,0.0001553,2]
[399640481,1766583040104,-150.0,0.0001553,2]
[399640485,1766583040127,-293.99,0.00015534,2]
[399640487,1766583040143,-999.0,0.0001555,3]
[399640490,1766583040159,-16707.49002494,0.00015556,2]
[399640493,1766583040176,-198.66594936,0.0001557,2]
[399640495,1766583040192,-151.0,0.00015587,2]
[399640498,1766583040208,-151.0,0.00015587,2]
[399640501,1766583040225,-345.45,0.00015587,2]
[399640503,1766583040241,-300.0,0.00015622,2]
[399640506,1766583040257,-250.0,0.00015622,2]
[399640509,1766583040273,-5000.0,0.00015622,4]
[399640511,1766583040288,-2500.0,0.00015622,2]
[399640514,1766583040305,-300.0,0.00015622,2]
[399640516,1766583040320,-150.0,0.00015627,2]
[399640519,1766583040335,-420.0,0.00015635,2]
[399640522,1766583040350,-150.0,0.00015665,2]
[399640525,1766583040365,-322.6107,0.0001567,2]
[399640530,1766583040380,-250.0,0.0001567,2]
[399640532,1766583040395,-250.0,0.0001567,2]
[399640535,1766583040410,-250.0,0.0001567,2]
[399640537,1766583040424,-250.0,0.0001567,2]
[399640540,1766583040444,-265.39375366,0.0001567,2]
[399640543,1766583040462,-250.0,0.0001567,2]
[399640544,1766583040477,-250.0,0.0001567,2]
[399640545,1766583040494,-250.0,0.0001567,2]
[399640546,1766583040511,-250.0,0.0001567,2]
[399640547,1766583040526,-250.0,0.0001567,2]
[399640548,1766583040541,-500.0,0.0001567,2]
[399640549,1766583040557,-500.0,0.0001567,2]
[399640550,1766583040572,-151.0,0.0001567,2]
[399640551,1766583040586,-500.0,0.0001567,2]
[399640552,1766583040601,-500.0,0.0001567,2]
[399640553,1766583040615,-156.587,0.0001567,2]
[399640554,1766583040631,-500.0,0.0001567,2]
[399640555,1766583040645,-162.380719,0.0001567,2]
[399640556,1766583040660,-500.0,0.0001567,2]
[399640557,1766583040679,-153.82745935,0.0001567,2]
[399640558,1766583040693,-500.0,0.0001567,2]
[399640559,1766583040708,-543.0,0.0001567,2]
[399640560,1766583040722,-500.0,0.0001567,2]
[399640561,1766583040737,-578.20924308,0.0001567,2]
[399640562,1766583040754,-500.0,0.0001567,2]
[399640563,1766583040769,-250.0,0.0001567,2]
[399640564,1766583040787,-500.0,0.0001567,2]
[399640565,1766583040800,-250.0,0.0001567,2]
[399640566,1766583040816,-500.0,0.0001567,2]
[399640567,1766583040830,-250.0,0.0001567,2]
[399640569,1766583040848,-250.0,0.0001567,2]
[399640570,1766583040862,-250.0,0.0001567,2]
[399640571,1766583040877,-250.0,0.0001567,2]
[399640572,1766583040897,-261.58626416,0.0001567,2]
[399640573,1766583040912,-500.0,0.0001567,2]
[399640574,1766583040926,-500.0,0.0001567,2]
[399640575,1766583040940,-500.0,0.0001567,2]
[399640576,1766583040954,-500.0,0.0001567,2]
[399640577,1766583040972,-500.0,0.0001567,2]
[399640578,1766583040986,-500.0,0.0001567,2]
[399640579,1766583041001,-500.0,0.0001567,2]
[399640580,1766583041016,-500.0,0.0001567,2]
[399640581,1766583041029,-796.02653009,0.0001567,2]
[399640582,1766583041043,-500.0,0.0001567,2]
[399640583,1766583041056,-500.0,0.0001567,2]
[399640584,1766583041070,-500.0,0.0001567,2]
[399640585,1766583041084,-500.0,0.0001567,2]
[399640586,1766583041097,-500.0,0.0001567,2]
[399640587,1766583041111,-500.0,0.0001567,2]
[399640588,1766583041124,-500.0,0.0001567,2]
[399640589,1766583041138,-500.0,0.0001567,2]
[399640590,1766583041154,-500.0,0.0001567,2]
[399640591,1766583041168,-500.0,0.0001567,2]
[399640592,1766583041180,-500.0,0.0001567,2]
[399640593,1766583041193,-500.0,0.0001567,2]
[399640594,1766583041208,-500.0,0.0001567,2]
[399640595,1766583041221,-500.0,0.0001567,2]
[399640596,1766583041235,-500.0,0.0001567,2]
[399640597,1766583041248,-500.0,0.0001567,2]
[399640598,1766583041261,-500.0,0.0001567,2]
[399640599,1766583041274,-500.0,0.0001567,2]
[399640600,1766583041288,-500.0,0.0001567,2]
[399640601,1766583041301,-500.0,0.0001567,2]
[399640602,1766583041313,-500.0,0.0001567,2]
[399640604,1766583041325,-500.0,0.0001567,2]
[399640606,1766583041339,-200.0,0.0001567,2]
[399640607,1766583041353,-500.0,0.0001567,2]
[399640608,1766583041365,-207.4,0.0001567,2]
[399640609,1766583041377,-500.0,0.0001567,2]
[399640610,1766583041390,-215.0738,0.0001567,2]
[399640611,1766583041403,-500.0,0.0001567,2]
[399640612,1766583041415,-223.0315306,0.0001567,2]
[399640613,1766583041428,-620.0,0.0001567,2]
[399640614,1766583041441,-231.28369723,0.0001567,2]
[399640615,1766583041454,-239.84119403,0.0001567,2]
[399640616,1766583041468,-248.71531821,0.0001567,2]
[399640617,1766583041481,-257.91778498,0.0001567,2]
[399640618,1766583041494,-267.46074303,0.0001567,2]
[399640619,1766583041514,-277.35679052,0.0001567,2]
[399640620,1766583041537,-500.0,0.0001567,2]
[399640621,1766583041552,-500.0,0.0001567,2]
[399640622,1766583041566,-500.0,0.0001567,2]
[399640623,1766583041580,-500.0,0.0001567,2]
[399640624,1766583041595,-500.0,0.0001567,2]
[399640625,1766583041609,-500.0,0.0001567,2]
[399640626,1766583041624,-500.0,0.0001567,2]
[399640627,1766583041639,-500.0,0.0001567,2]
[399640628,1766583041654,-261.6071653,0.0001567,2]
[399640629,1766583041671,-1680.0,0.00015702,2]
[399640630,1766583041685,-195.0,0.00015703,2]
[399640631,1766583041699,-300.0,0.00015703,2]
[399640632,1766583041712,-195.0,0.00015703,2]
[399640633,1766583041726,-1000.0,0.00015721,2]
[399640634,1766583041740,-1000.0,0.00015721,2]
[399640635,1766583041752,-1000.0,0.00015721,2]
[399640636,1766583041765,-535.67909762,0.00015721,2]
[399640637,1766583041780,-1000.0,0.00015721,2]
[399640638,1766583041792,-1000.0,0.00015721,2]
[399640639,1766583041805,-1000.0,0.00015721,2]
[399640640,1766583041819,-937.29781211,0.00015721,2]